bitfinex/quotes_ETHUSD_20260114
["timestamp","ask_amount","ask_price","bid_price","bid_amount"]
[1768403514413,4.24013656,3349.5,3347.0,6.06579643]
[1768403514590,1.25461634,3349.5,3347.6,0.09032472]
[1768403514795,0.42401018,3349.4,3347.2,0.09032472]
[1768403515111,0.42401018,3349.4,3347.7,0.09032472]
[1768403515318,5.96986265,3350.2,3348.3,0.09032472]
[1768403515476,5.96986265,3350.2,3348.5,0.09032472]
[1768403515683,2.98489642,3350.2,3348.5,3.07666705]
[1768403515912,5.96986265,3350.2,3348.7,0.09032472]
[1768403516222,6.26704574,3350.9,3349.7,0.09032472]
[1768403516433,3.28269394,3350.9,3349.3,0.09032472]
[1768403516610,9.25139754,3350.9,3349.2,0.357]
[1768403516917,9.25139754,3350.9,3349.1,0.44732472]
[1768403516918,1e-08,3349.3,3349.1,0.44732472]
[1768403517415,1e-08,3349.3,3349.2,14.5]
[1768403517719,1e-08,3349.3,3348.3,0.09032472]
[1768403517720,1e-08,3349.3,3348.2,3.3436794]
[1768403517894,1e-08,3349.3,3348.3,0.43372513]
[1768403518511,1e-08,3349.3,3348.5,0.09032472]
[1768403518716,1.25461635,3349.3,3348.2,0.09032472]
[1768403518881,0.16286164,3349.2,3348.2,0.09032472]
[1768403519079,0.16286164,3349.2,3348.6,0.09032472]
[1768403519080,0.29842106,3349.1,3348.6,0.09032472]
[1768403519718,1e-08,3349.3,3348.8,0.09032472]
[1768403520029,1e-08,3349.3,3349.0,0.09032472]
[1768403520179,1e-08,3349.3,3348.8,0.09032472]
[1768403520386,1e-08,3349.3,3348.8,0.12018616]
[1768403520583,1e-08,3349.3,3348.6,0.44632472]
[1768403520783,1e-08,3349.3,3348.5,0.09032472]
[1768403520984,1e-08,3349.3,3348.6,0.02986322]
[1768403521304,1e-08,3349.3,3348.7,0.09032472]
[1768403521816,0.55500001,3349.3,3348.4,0.44632472]
[1768403521994,2.98500924,3350.1,3348.6,0.09032472]
[1768403521995,2.98498552,3350.1,3348.6,0.09032472]
[1768403522195,0.555,3350.2,3349.2,0.09032472]
[1768403522400,0.25857894,3351.0,3349.6,0.09032472]
[1768403522599,0.25857894,3351.0,3349.4,0.09032472]
[1768403522600,6.22699874,3351.0,3349.4,0.09032472]
[1768403522785,6.22699874,3351.0,3349.7,0.356]
[1768403522990,6.22699874,3351.0,3349.3,0.356]
[1768403523228,6.22699874,3351.0,3348.3,2.98658283]
[1768403523229,1.25461634,3350.8,3348.3,2.98658283]
[1768403523433,1.25461634,3350.8,3348.6,0.09032472]
[1768403523588,1.25461634,3350.1,3347.0,0.09032472]
[1768403523792,1.25461634,3349.9,3347.7,0.09032472]
[1768403524000,1.25461634,3349.7,3347.4,0.356]
[1768403524202,0.555,3349.3,3347.4,0.09032472]
[1768403524400,0.555,3349.3,3347.5,0.58068558]
[1768403524620,1.80961634,3349.3,3347.6,0.22468558]
[1768403524818,14.9253731,3350.0,3348.4,0.09032472]
[1768403524819,0.02986144,3349.7,3348.4,0.09032472]
[1768403525019,2.98507462,3350.0,3348.8,0.09032472]
[1768403525321,2.54972007,3350.9,3349.0,0.09032472]
[1768403525322,5.96872388,3350.8,3349.0,0.09032472]
[1768403525529,5.96872388,3350.8,3349.2,0.09032472]
[1768403525530,6.54798075,3350.8,3349.2,0.09032472]
[1768403525723,6.54798075,3350.8,3349.4,0.09032472]
[1768403525908,6.54798075,3350.8,3349.5,0.22456611]
[1768403526092,6.54798075,3350.8,3349.6,0.22456611]
[1768403526288,0.68065597,3350.7,3349.7,0.22456611]
[1768403526589,0.68065597,3350.7,3349.0,0.09032472]
[1768403526809,0.555,3350.1,3349.4,0.09032472]
[1768403527338,0.68065597,3350.7,3349.2,0.02985787]
[1768403527533,0.66493799,3350.6,3349.3,0.44632472]
[1768403527741,2.98462915,3350.5,3349.5,0.09032472]
[1768403527911,0.25857894,3351.0,3349.7,0.09032472]
[1768403528120,2.98338255,3351.9,3350.8,0.09032472]
[1768403528339,5.9667651,3351.9,3350.3,0.09032472]
[1768403528523,0.002,3351.0,3350.7,0.356]
[1768403528827,2.39071901,3352.0,3350.8,0.09032472]
[1768403529050,5.37403934,3352.0,3350.8,0.09032472]
[1768403529248,5.37403934,3352.0,3350.0,0.09032472]
[1768403529249,0.555,3350.8,3350.0,0.09032472]
[1768403529435,8.35735967,3352.0,3350.6,0.09032472]
[1768403529436,2.39071901,3352.0,3350.6,0.09032472]
[1768403529639,0.002,3352.4,3350.6,0.09032472]
[1768403529640,2.98302657,3352.3,3350.8,0.09032472]
[1768403529841,0.002,3352.4,3351.6,0.09032472]
[1768403530169,3.35552197,3354.0,3351.6,0.09032472]
[1768403530170,1.80961634,3354.1,3352.0,0.09032472]
[1768403530483,1.80961634,3354.1,3352.7,0.09032472]
[1768403530484,6.14399083,3354.0,3352.7,0.09032472]
[1768403530754,0.02986144,3353.9,3352.6,0.356]
[1768403530917,9.12550543,3354.0,3352.4,0.355]
[1768403531116,0.96805054,3353.9,3352.4,0.355]
[1768403531444,0.96805054,3353.9,3352.0,0.09032472]
[1768403531445,0.96805054,3353.9,3352.5,0.355]
[1768403531747,0.02986144,3353.9,3352.5,0.355]
[1768403531951,0.02986144,3353.9,3352.5,3.33783941]
[1768403531952,2.9816924,3353.8,3352.5,3.33783941]
[1768403532124,5.9633848,3353.8,3352.2,0.09032472]
[1768403532326,2.9816924,3353.8,3352.6,3.07308436]
[1768403532542,2.9815146,3354.0,3352.7,0.31634091]
[1768403532728,2.9815146,3354.0,3352.6,3.07308436]
[1768403532729,5.9630292,3354.0,3352.8,0.355]
[1768403533047,5.94900257,3354.0,3352.6,0.09032472]
[1768403533251,2.9815146,3354.0,3353.3,0.09032472]
[1768403533554,5.98529728,3354.6,3353.7,0.09032472]
[1768403533717,8.96630527,3354.6,3353.5,0.09032472]
[1768403534123,5.98529728,3354.6,3353.5,0.09032472]
[1768403534327,0.555,3353.9,3353.1,0.09032472]
[1768403534842,0.555,3353.9,3352.5,0.09032472]
[1768403535038,0.555,3353.9,3352.9,0.09032472]
[1768403535238,6.58382701,3354.6,3353.3,0.09032472]
[1768403535451,8.96630527,3354.6,3352.9,2.98244869]
[1768403535628,5.98529728,3354.6,3353.4,0.09032472]
[1768403535960,5.98529728,3354.6,3353.0,0.09032472]
[1768403535961,9.564835,3354.6,3353.0,0.09032472]
[1768403536169,9.564835,3354.6,3353.4,0.355]
[1768403536341,5.98529728,3354.6,3353.2,0.09032472]
[1768403536525,0.02986144,3354.5,3353.3,0.355]
[1768403536854,0.02986144,3354.5,3352.7,0.09032472]
[1768403537060,0.95511667,3354.4,3353.0,0.09032472]
[1768403537265,0.95511667,3354.4,3353.2,0.09032472]
[1768403537658,6.54029728,3354.6,3353.4,0.09032472]
[1768403538359,6.54029728,3354.6,3352.9,0.09032472]
[1768403538360,9.52130527,3354.6,3353.5,0.21293182]
[1768403538566,9.52130527,3354.6,3352.9,0.09032472]
[1768403538732,9.52130527,3354.6,3352.8,0.09032472]
[1768403538733,12.50231326,3354.6,3352.8,0.09032472]
[1768403538937,9.52130527,3354.6,3352.9,0.44532472]
[1768403539237,9.52130527,3354.6,3352.9,0.09032472]
[1768403539238,1.28009277,3354.5,3352.9,0.09032472]
[1768403539440,1.25023133,3354.5,3353.1,0.09032472]
[1768403539647,4.11428929,3354.6,3353.3,0.09032472]
[1768403539848,7.09529728,3354.6,3353.3,0.09032472]
[1768403540262,0.02986144,3354.5,3353.3,0.09032472]
[1768403540441,0.02986144,3354.5,3352.9,0.09032472]
[1768403540644,1.01060975,3354.4,3352.9,0.44532472]
[1768403540839,1.01060975,3354.4,3352.9,0.09032472]
[1768403541371,4.11428929,3354.6,3353.3,3.07240404]
[1768403541542,7.12515872,3354.6,3353.1,0.09032472]
[1768403541730,7.12515872,3354.6,3352.8,0.355]
[1768403541731,7.65029728,3354.6,3353.0,0.09032472]
[1768403541931,8.36281315,3354.6,3353.2,0.09032472]
[1768403542181,0.002,3354.3,3353.8,0.09032472]
[1768403542533,0.02986144,3354.5,3353.4,0.09032472]
[1768403542764,6.1700366,3355.0,3353.6,0.09032472]
[1768403543072,3.18941067,3355.0,3354.0,0.09032472]
[1768403543259,0.00207139,3356.4,3355.5,0.09032472]
[1768403543640,0.00207139,3356.4,3355.4,0.09032472]
[1768403543856,0.00207139,3356.4,3355.4,3.07056846]
[1768403544057,0.00207139,3356.4,3355.4,0.09032472]
[1768403544264,0.00207139,3356.4,3354.9,0.09032472]
[1768403544444,0.00207139,3356.4,3355.3,0.09032472]
[1768403544645,0.00207139,3356.4,3355.8,0.09032472]
[1768403544844,0.02986144,3357.4,3356.1,0.09032472]
[1768403545051,5.9568131,3357.5,3355.9,0.354]
[1768403545568,8.96508109,3357.5,3355.4,2.98026305]
[1768403545880,0.03286144,3356.9,3354.6,0.09032472]
[1768403546048,0.03286144,3356.9,3355.5,2.9801582]
[1768403546049,0.003,3356.9,3355.5,2.9801582]
[1768403546254,0.003,3356.9,3356.1,0.09032472]
[1768403546561,0.003,3356.9,3355.6,0.09032472]
[1768403546758,0.555,3356.4,3355.6,0.67008076]
[1768403547068,0.555,3356.4,3355.5,0.354]
[1768403547270,0.5,3358.0,3355.9,1.94024997]
[1768403547473,0.003,3358.8,3357.2,0.09032472]
[1768403547776,6.15888895,3358.4,3357.2,0.09032472]
[1768403548071,0.003,3358.8,3357.7,0.09032472]
[1768403548282,0.0232813,3361.2,3358.3,0.09032472]
[1768403548441,0.0232813,3361.2,3357.8,0.09032472]
[1768403548442,5.95412642,3360.0,3357.8,0.09032472]
[1768403548647,8.93035373,3360.0,3358.1,0.09032472]
[1768403548861,8.93035373,3360.0,3357.3,0.354]
[1768403548862,1.95661598,3359.9,3357.3,0.354]
[1768403549063,1.95661598,3359.9,3357.2,5.9573199]
[1768403549064,1.92675454,3359.6,3357.2,5.9573199]
[1768403549381,0.02986144,3359.5,3356.6,0.09032472]
[1768403549535,0.33429357,3359.5,3357.2,5.95727833]
[1768403549741,5.95344406,3359.4,3356.9,5.95784645]
[1768403549939,8.93016609,3359.4,3356.9,5.95784645]
[1768403550340,0.33429357,3359.5,3357.4,0.09032472]
[1768403550571,8.92883715,3359.9,3357.7,0.09032472]
[1768403550839,1.92675454,3359.7,3356.9,5.95784645]
[1768403551040,1.92675454,3359.6,3356.8,2.97902764]
[1768403551344,1.75088161,3359.6,3356.9,0.09032472]
[1768403554168,12.285207,3357.9,3355.6,2.98003]
[1768403554560,1.92675454,3357.8,3355.5,2.98016292]
[1768403554762,1.95661598,3357.7,3355.3,0.354]
[1768403554964,1.72198747,3357.6,3355.3,3.33427732]
[1768403555270,1.95661598,3357.5,3355.3,0.354]
[1768403555474,1.92675454,3357.3,3353.9,1.34]
[1768403555672,1.92675454,3357.1,3354.9,2.98070732]
[1768403555873,5.95770032,3357.0,3355.0,0.02980625]
[1768403556174,5.95770032,3357.0,3354.4,8.94347721]
[1768403556175,5.98756176,3357.0,3354.4,8.94347721]
[1768403556375,5.98756176,3357.0,3354.5,0.25032472]
[1768403556376,5.95770032,3357.0,3354.5,0.25032472]
[1768403556571,2.97885016,3357.0,3354.7,0.16]
[1768403556982,5.95770032,3357.0,3354.7,0.16]
[1768403557475,8.93655048,3357.0,3354.6,2.05066345]
[1768403557676,11.91540064,3357.0,3354.6,2.04973484]
[1768403557846,2.97885016,3357.0,3354.4,5.96231814]
[1768403558177,1.92675454,3356.9,3354.4,5.96231814]
[1768403558352,0.373,3356.8,3354.4,5.96231814]
[1768403558547,2.15672999,3356.7,3354.5,0.94575737]
[1768403558876,1.92675454,3356.5,3353.7,3.33573409]
[1768403559047,1.92675454,3356.5,3354.3,5.96249483]
[1768403559251,9.30928429,3357.1,3354.4,2.22038628]
[1768403559476,1.92675454,3356.1,3355.0,0.09032472]
[1768403559775,8.93947971,3355.9,3355.4,0.09032472]
[1768403559978,5.95965314,3355.9,3355.5,0.09032472]
[1768403560185,5.95965314,3355.9,3355.6,0.09032472]
[1768403560506,4.67796212,3357.0,3355.8,0.09032472]
[1768403560507,2.97947144,3356.3,3355.8,0.09032472]
[1768403560645,2.97947144,3356.3,3355.6,0.09032472]
[1768403560845,8.93841432,3356.3,3354.5,0.09032472]
[1768403561075,2.97947144,3356.3,3355.4,0.09032472]
[1768403561457,5.95805528,3356.8,3355.7,0.09032472]
[1768403561648,8.93708292,3356.8,3355.7,0.09032472]
[1768403561846,5.95841028,3356.6,3355.7,0.09032472]
[1768403562247,2.97920514,3356.6,3355.7,0.09032472]
[1768403562481,5.95841028,3356.6,3355.7,0.09032472]
[1768403562678,8.93761542,3356.6,3355.4,0.09032472]
[1768403562845,5.6605035,3356.6,3355.4,0.09032472]
[1768403563049,6.21632844,3356.6,3355.6,0.09032472]
[1768403563578,2.67107295,3356.6,3355.6,0.09032472]
[1768403563773,2.97902764,3356.8,3355.6,3.07038716]
[1768403563967,5.95805528,3356.8,3355.8,0.09032472]
[1768403564164,2.97902764,3356.8,3355.8,0.09032472]
[1768403564391,5.95805528,3356.8,3355.2,0.09032472]
[1768403564585,7.01825231,3356.8,3355.4,0.09032472]
[1768403564779,0.02986144,3356.7,3355.4,0.09032472]
[1768403564979,9.99727995,3356.8,3355.4,0.09032472]
[1768403565596,7.01825231,3356.8,3355.4,0.09032472]
[1768403565797,0.02986144,3356.7,3355.3,2.98031117]
[1768403565998,9.31008292,3356.8,3355.2,3.07076731]
[1768403566298,0.02986144,3356.7,3355.1,2.9804658]
[1768403566595,0.373,3356.6,3354.6,0.09032472]
[1768403566795,0.98949444,3356.6,3354.9,2.9806595]
[1768403566996,0.373,3356.5,3355.0,2.98062182]
[1768403567211,6.51305528,3356.8,3355.2,2.98043754]
[1768403567381,9.49208292,3356.8,3355.3,0.30707623]
[1768403567577,12.47111056,3356.8,3354.6,0.09032472]
[1768403567899,12.47111056,3356.8,3354.5,0.09032472]
[1768403567900,1.92675454,3356.7,3354.5,0.09032472]
[1768403568101,1.92675454,3356.5,3354.7,0.09032472]
[1768403568400,1.92675454,3356.5,3354.8,0.02980803]
[1768403568697,0.373,3356.4,3354.6,0.09032472]
[1768403568896,0.02986144,3356.3,3354.5,2.98105817]
[1768403569087,0.38097596,3356.2,3354.6,0.30713829]
[1768403569287,2.3077305,3356.2,3353.7,0.353]
[1768403569490,1.92675454,3356.1,3353.7,0.353]
[1768403569692,1.92675454,3356.1,3354.1,2.98140946]
[1768403569869,1.92675454,3356.1,3354.3,2.9812401]
[1768403570075,10.86596788,3356.0,3353.8,5.9633848]
[1768403570304,13.84570566,3356.0,3353.8,3.32421068]
[1768403570502,0.373,3355.9,3353.9,0.02981603]
[1768403570694,0.373,3355.9,3353.8,6.3962278]
[1768403571001,1.12389679,3355.8,3353.9,0.97310559]
[1768403571370,2.51053211,3355.7,3353.9,0.97310559]
[1768403571675,2.51053211,3355.7,3353.2,2.98219664]
[1768403571676,2.51053211,3355.7,3353.3,0.001]
[1768403571902,2.60085683,3355.7,3353.3,0.001]
[1768403572104,2.51053211,3355.5,3353.3,0.001]
[1768403572311,2.51053211,3355.3,3353.3,0.001]
[1768403572476,2.51053211,3355.1,3353.3,0.60053748]
[1768403572676,2.51053211,3355.1,3353.4,0.02982048]
[1768403573180,0.67038568,3355.2,3353.3,0.001]
[1768403573181,2.51053211,3354.9,3353.3,0.001]
[1768403573381,0.373,3354.8,3353.3,0.001]
[1768403573605,2.51053211,3355.5,3353.3,0.001]
[1768403573776,2.51053211,3355.1,3353.3,0.001]
[1768403573972,5.96178494,3354.7,3353.3,0.001]
[1768403574183,0.373,3354.6,3353.3,0.001]
[1768403576103,0.373,3354.5,3353.3,0.001]
[1768403576606,6.51678494,3354.7,3353.3,0.001]
[1768403576779,0.373,3354.6,3353.3,0.001]
[1768403577186,6.88978494,3354.7,3353.3,0.001]
[1768403577587,3.53589247,3354.7,3353.3,0.001]
[1768403577785,1e-08,3354.8,3353.4,0.353]
[1768403578296,1e-08,3354.8,3354.7,0.08282583]
[1768403578495,0.373,3355.4,3354.7,0.08282583]
[1768403578709,0.18264981,3354.8,3354.7,0.08282583]
[1768403578892,0.373,3355.4,3353.6,0.0298187]
[1768403579089,5.96000834,3355.7,3353.7,1.240098]
[1768403579406,0.373,3355.6,3353.8,0.02981692]
[1768403579618,0.373,3355.6,3353.7,1.240098]
[1768403579777,5.96000834,3355.7,3353.7,1.240098]
[1768403580120,0.373,3355.6,3353.7,1.240098]
[1768403580283,5.96036358,3355.5,3353.9,5.963207]
[1768403580478,2.51053211,3355.4,3353.8,1.02763001]
[1768403580684,2.54039355,3355.3,3353.8,2.98167539]
[1768403580909,0.373,3355.2,3353.8,2.98167539]
[1768403581110,3.06553211,3355.3,3353.8,5.96336779]
[1768403581379,0.373,3355.2,3353.4,0.353]
[1768403581613,0.02986144,3355.1,3353.4,0.353]
[1768403581778,1.36284068,3355.2,3353.4,0.353]
[1768403581979,2.54039355,3355.1,3353.4,3.33499259]
[1768403582219,2.51053211,3354.9,3353.3,0.001]
[1768403582425,2.54039355,3354.8,3353.3,0.001]
[1768403582596,11.92250372,3355.0,3353.3,0.001]
[1768403582597,1.03047185,3354.9,3353.3,0.001]
[1768403582791,0.373,3354.8,3353.3,0.001]
[1768403583051,2.98058302,3355.1,3353.3,0.001]
[1768403583052,2.98055475,3355.1,3353.3,0.001]
[1768403583193,0.928,3355.3,3353.4,0.44432472]
[1768403583393,0.555,3355.1,3353.4,0.44432472]
[1768403583593,0.02986144,3355.0,3353.4,0.354]
[1768403583803,0.373,3354.9,3353.5,0.02981959]
[1768403584007,0.373,3354.9,3353.4,0.354]
[1768403584316,5.96125186,3355.0,3353.3,0.001]
[1768403584488,2.51053211,3354.9,3353.3,0.001]
[1768403584811,2.51053211,3354.9,3353.6,0.001]
[1768403585014,2.88353211,3354.8,3353.6,0.001]
[1768403585221,1.27835383,3354.7,3353.6,0.001]
[1768403585379,3.28888594,3354.7,3353.6,0.001]
[1768403585580,2.54039355,3354.6,3353.3,0.001]
[1768403585999,3.09539355,3354.6,3353.3,0.001]
[1768403586315,5.96231814,3354.4,3353.3,0.001]
[1768403586615,0.555,3354.6,3353.3,0.001]
[1768403586838,2.9810702,3354.5,3353.3,0.001]
[1768403587124,5.9621404,3354.5,3353.3,0.001]
[1768403587327,2.9810702,3354.5,3353.3,0.001]
[1768403587710,3.3540702,3354.5,3353.3,7.14e-05]
[1768403587910,3.53600915,3354.6,3353.3,7.14e-05]
[1768403588104,0.505,3354.6,3353.3,7.14e-05]
[1768403588310,1.06,3354.6,3353.3,7.14e-05]
[1768403588506,0.555,3355.1,3353.3,0.02989276]
[1768403588706,0.555,3355.1,3353.3,7.14e-05]
[1768403589018,0.555,3355.1,3353.4,0.26512097]
[1768403590011,0.555,3355.1,3353.5,0.02981959]
[1768403590412,0.555,3355.1,3353.6,8.94561066]
[1768403590932,1.11,3355.1,3353.6,8.94561066]
[1768403591131,1.11,3355.1,3353.7,0.92107316]
[1768403591307,1.11,3355.1,3353.8,0.12014164]
[1768403591510,1.11,3355.1,3353.8,0.09032472]
[1768403591931,0.05888438,3355.1,3353.9,0.02981603]
[1768403592134,1e-08,3355.1,3354.0,0.353]
[1768403592335,1e-08,3355.1,3354.2,8.94401049]
[1768403592498,1e-08,3355.1,3354.3,1.26064594]
[1768403592923,0.555,3355.8,3354.3,1.26064594]
[1768403593127,0.555,3355.8,3354.3,1.23083347]
[1768403593403,4.08991675,3355.8,3354.3,1.23083347]
[1768403593602,0.02986144,3355.7,3354.3,1.23083347]
[1768403593907,7.0698335,3355.8,3354.4,0.71935071]
[1768403594425,7.0698335,3355.8,3354.5,2.9810702]
[1768403594637,0.02986144,3355.7,3354.4,2.98112279]
[1768403594806,7.0698335,3355.8,3354.4,5.96228186]
[1768403595005,4.08991675,3355.8,3354.4,5.96228186]
[1768403595235,4.46291675,3355.8,3354.5,0.59622819]
[1768403595438,7.4428335,3355.8,3354.5,0.59622819]
[1768403595637,0.02986144,3355.7,3354.5,0.59622819]
[1768403595810,2.54039355,3355.7,3354.0,2.9814392]
[1768403596006,2.54039355,3355.7,3354.0,2.98145566]
[1768403596211,2.51053211,3355.7,3353.2,0.09032472]
[1768403596415,2.51053211,3355.7,3354.2,2.98133177]
[1768403596648,5.96018594,3355.6,3353.6,2.98183704]
[1768403596933,2.98003794,3355.7,3353.7,0.92987553]
[1768403597112,0.373,3355.6,3353.7,3.22801387]
[1768403597453,1.665,3355.8,3353.8,2.29813834]
[1768403597655,1.0,3356.0,3353.8,2.29813834]
[1768403597656,0.99907141,3356.0,3354.4,2.29813834]
[1768403597806,0.99907141,3356.0,3354.5,0.353]
[1768403598206,0.002,3355.5,3354.5,0.353]
[1768403598442,1.55407141,3356.0,3354.5,0.353]
[1768403598631,0.002,3355.8,3354.6,6.23610897]
[1768403599041,0.002,3355.8,3354.6,9.2170903]
[1768403599206,0.002,3355.8,3354.6,6.23610897]
[1768403600653,0.557,3355.8,3354.6,6.23610897]
[1768403600945,0.557,3355.8,3354.7,0.95702286]
[1768403602435,0.557,3355.8,3354.8,0.02980803]
[1768403602636,0.555,3356.8,3354.8,21.69810372]
[1768403602808,0.46631279,3356.7,3355.4,0.09032472]
[1768403603013,2e-08,3356.8,3355.5,3.03633072]
[1768403603317,0.555,3356.7,3355.5,3.03633072]
[1768403604026,0.555,3356.7,3355.5,0.354]
[1768403604240,0.555,3356.7,3354.9,2.77265544]
[1768403604540,0.555,3356.7,3355.0,0.354]
[1768403604723,0.555,3356.7,3355.2,2.68233072]
[1768403605037,0.555,3356.7,3355.3,0.02980359]
[1768403605238,0.555,3357.1,3355.2,2.68233072]
[1768403605239,2.70367174,3358.1,3355.9,2.68233072]
[1768403605561,9.03475292,3358.0,3356.0,0.354]
[1768403605742,1.28662776,3357.9,3356.7,0.02086068]
[1768403605911,3.96043806,3357.9,3356.7,0.02086068]
[1768403606110,1.25676632,3357.9,3356.7,0.02086068]
[1768403606333,0.02986144,3357.9,3356.7,0.02086068]
[1768403606637,6.51308118,3358.0,3356.7,0.02086068]
[1768403606826,2.70367174,3357.9,3356.7,0.02086068]
[1768403607438,2.70367174,3357.7,3356.7,0.02086068]
[1768403607637,2.70367174,3357.6,3356.7,0.02086068]
[1768403607945,0.373,3357.5,3356.7,0.02086068]
[1768403608141,0.373,3357.5,3355.9,0.354]
[1768403608342,2.70367174,3357.4,3356.1,2.97964669]
[1768403608541,2.70367174,3357.4,3355.9,0.354]
[1768403608715,5.9573454,3357.2,3355.9,0.354]
[1768403609039,0.02986144,3357.1,3355.9,0.354]
[1768403609240,8.9360181,3357.2,3355.9,0.354]
[1768403609440,8.9360181,3357.2,3355.6,2.98007544]
[1768403609441,5.9573454,3357.2,3355.6,2.98007544]
[1768403609611,5.9573454,3357.2,3355.5,2.98016724]
[1768403609612,0.373,3357.1,3355.5,2.98016724]
[1768403609813,1.5732695,3357.1,3355.6,2.98007826]
[1768403610044,0.373,3357.0,3355.7,0.02980004]
[1768403610214,2.97840655,3357.5,3355.9,5.95963542]
[1768403610415,0.555,3357.6,3356.0,7.44554786]
[1768403610613,0.555,3357.6,3356.1,2.68233072]
[1768403610614,0.555,3357.5,3356.1,2.68233072]
[1768403610847,0.555,3357.6,3356.3,2.68233072]
[1768403611056,0.555,3358.2,3356.3,2.68233072]
[1768403611218,1e-08,3358.2,3356.7,2.68233072]
[1768403611419,2.97654482,3359.6,3357.4,9.74508121]
[1768403611618,2.97654482,3359.6,3357.5,1.32750812]
[1768403611812,0.02986144,3359.5,3357.5,1.32750812]
[1768403612046,2.97654482,3359.6,3357.5,3.03533072]
[1768403612365,2.97654482,3359.6,3357.6,0.353]
[1768403612522,0.92970864,3360.0,3357.6,0.353]
[1768403612523,3.53347725,3359.7,3357.6,3.03533072]
[1768403612718,0.557,3359.7,3358.0,14.594183]
[1768403613030,0.557,3359.7,3358.1,2.16569335]
[1768403613031,0.555,3359.6,3358.1,2.16569335]
[1768403613226,0.555,3359.6,3358.0,8.93388921]
[1768403613442,0.555,3359.6,3358.1,2.68233072]
[1768403613640,0.58486144,3359.6,3358.1,2.68233072]
[1768403613836,0.555,3359.6,3358.0,5.95592614]
[1768403614037,0.555,3359.6,3358.1,0.59559261]
[1768403614847,3.53161129,3359.6,3358.2,5.95557142]
[1768403615152,0.555,3359.6,3358.3,0.353]
[1768403615369,4.08655736,3359.6,3358.4,0.6904164]
[1768403615856,1.11,3359.6,3358.4,0.6904164]
[1768403616522,4.08654588,3359.6,3358.4,0.6904164]
[1768403616842,7.06309176,3359.6,3358.4,0.6904164]
[1768403617043,0.02986144,3359.5,3358.0,0.353]
[1768403617257,3.07667174,3359.4,3358.0,0.353]
[1768403617460,3.07667174,3359.4,3356.9,9.83540593]
[1768403617461,3.07667174,3359.4,3357.5,0.353]
[1768403617663,4.07398882,3359.4,3357.9,2.97712164]
[1768403617866,0.02986144,3359.3,3357.5,0.353]
[1768403618024,2.29831708,3359.4,3358.2,2.97773229]
[1768403618657,1.92531708,3359.4,3358.3,2.97768175]
[1768403618873,0.555,3359.4,3357.5,3.03533072]
[1768403619179,5.95326684,3359.5,3357.6,5.95663568]
[1768403619460,0.02986144,3359.4,3357.7,0.89919664]
[1768403619829,0.02986144,3359.4,3357.7,1.25219664]
[1768403620160,2.73353318,3359.4,3357.7,1.25219664]
[1768403620373,3.28853318,3359.4,3357.7,0.353]
[1768403620527,0.373,3359.3,3357.8,0.0297814]
[1768403620732,0.373,3359.3,3357.7,0.353]
[1768403620927,5.98365996,3359.2,3357.8,0.63097855]
[1768403621252,5.98365996,3359.2,3356.4,1.74241121]
[1768403621253,3.07667174,3359.1,3357.2,0.02978672]
[1768403621453,2.70367174,3359.1,3357.7,2.97822889]
[1768403621651,0.02986144,3359.0,3357.8,0.29782289]
[1768403621854,0.373,3359.1,3357.8,0.29782289]
[1768403622151,2.73353318,3359.0,3357.0,0.353]
[1768403622341,2.70367174,3359.0,3357.0,0.353]
[1768403622549,2.70367174,3359.0,3357.3,2.97851599]
[1768403622743,2.70367174,3359.0,3357.4,0.59572771]
[1768403622744,3.93427013,3358.9,3357.4,0.59572771]
[1768403622930,12.03829452,3358.8,3357.0,0.353]
[1768403623130,9.0311793,3358.8,3357.4,2.97849207]
[1768403623335,8.6581793,3358.8,3357.4,2.97849207]
[1768403623668,9.0311793,3358.8,3357.4,2.97849207]
[1768403624160,12.00843308,3358.8,3357.2,2.97864839]
[1768403624454,1.25634331,3358.7,3357.3,3.31169002]
[1768403624658,2.70367174,3358.6,3356.1,1.9335039]
[1768403624857,9.30555916,3358.5,3356.3,2.68233072]
[1768403625075,5.95503944,3358.5,3356.4,3.03533072]
[1768403625233,0.373,3358.4,3356.4,3.06512454]
[1768403625433,0.373,3358.4,3356.6,2.68233072]
[1768403625738,5.95503944,3358.5,3357.6,0.001]
[1768403625927,2.97751972,3358.5,3357.6,0.001]
[1768403626331,2.97751972,3358.5,3357.1,0.353]
[1768403626573,0.555,3358.6,3357.1,3.03533072]
[1768403626876,0.555,3358.6,3357.4,5.95699052]
[1768403627079,6.50990895,3358.6,3357.4,3.33149526]
[1768403627444,10.04238683,3358.6,3357.2,0.30353307]
[1768403627643,7.06490895,3358.6,3357.1,3.33174483]
[1768403627879,7.06490895,3358.6,3357.3,2.97858123]
[1768403627880,4.08743107,3358.6,3357.3,2.97858123]
[1768403628178,7.10212683,3358.6,3357.3,2.97858123]
[1768403628386,7.10212683,3358.6,3357.1,0.353]
[1768403628387,7.06490895,3358.6,3357.1,0.353]
[1768403628688,0.03721899,3358.5,3357.0,2.97879477]
[1768403628841,5.95521676,3358.4,3357.1,0.59578078]
[1768403629046,5.95521676,3358.4,3357.1,3.57454095]
[1768403629047,0.373,3358.3,3357.1,3.57454095]
[1768403629544,5.95521676,3358.4,3357.1,3.57454095]
[1768403629739,5.99243686,3358.4,3357.1,3.57454095]
[1768403629971,6.54743686,3358.4,3356.7,0.353]
[1768403630166,3.53260838,3358.4,3357.1,2.9787459]
[1768403630468,6.51021676,3358.4,3357.1,2.9787459]
[1768403631271,6.51021676,3358.4,3356.8,2.97895101]
[1768403631472,0.03722121,3358.3,3356.8,2.97895101]
[1768403631676,2.95607604,3358.2,3355.8,2.81433384]
[1768403631839,2.95607604,3358.2,3356.1,2.81433384]
[1768403632045,0.373,3358.1,3356.7,2.97910171]
[1768403632271,0.373,3358.1,3355.9,0.353]
[1768403632272,0.44298759,3358.0,3355.9,3.33279083]
[1768403632583,2.95607604,3358.2,3356.7,2.97908306]
[1768403632584,0.373,3357.9,3356.7,2.97908306]
[1768403632869,0.373,3357.9,3355.9,7.41575049]
[1768403633068,0.555,3358.2,3356.7,2.97911639]
[1768403633269,0.555,3358.2,3356.1,5.88426519]
[1768403633270,5.95592614,3358.0,3356.2,5.95907122]
[1768403633568,0.373,3357.9,3356.3,0.87734051]
[1768403634279,3.36630168,3357.9,3356.3,0.87734051]
[1768403634647,3.32907604,3357.9,3356.3,0.87734051]
[1768403634884,3.51107604,3357.9,3356.4,0.01481952]